bitfinex-derivatives/quotes_ETHF0:USTF0_20250210
["timestamp","ask_amount","ask_price","bid_price","bid_amount"]
[1739157062400,0.00577056,2599.4,2599.2,3.2078]
[1739157063394,0.00577056,2599.4,2599.2,9.2078]
[1739157063592,3.2078,2599.7,2599.2,9.2078]
[1739157063788,3.7803,2600.4,2599.5,3.2078]
[1739157064089,3.7803,2600.4,2599.6,41.9725]
[1739157064302,3.2078,2600.4,2599.9,3.2078]
[1739157065394,0.19407345,2600.7,2599.9,3.2078]
[1739157065699,7.3404218,2600.6,2599.7,1.912]
[1739157066094,7.3404218,2600.6,2599.6,1.1725]
[1739157066306,1.1614,2600.5,2599.6,1.1725]
[1739157066509,1.1614,2600.5,2599.6,4.3803]
[1739157066805,4.11264512,2600.4,2599.6,4.3803]
[1739157067012,0.00370227,2600.2,2599.7,0.5613]
[1739157069713,3.21150227,2600.2,2599.2,3.2078]
[1739157069907,3.2078,2599.8,2599.2,3.2078]
[1739157070209,3.2078,2599.8,2598.9,45.46022024]
[1739157070404,3.2078,2599.8,2599.2,3.2078]
[1739157071208,3.2078,2599.4,2598.9,1.1453]
[1739157071403,4.63414834,2599.7,2598.9,1.1453]
[1739157071607,3.2078,2599.8,2598.9,1.1453]
[1739157071608,3.2078,2599.8,2599.1,3.2078]
[1739157073919,3.2078,2599.5,2598.9,1.1453]
[1739157074122,3.2078,2599.5,2598.8,0.00577056]
[1739157074315,4.13731547,2599.4,2598.8,0.00577056]
[1739157074612,4.13731547,2599.4,2598.8,3.21357056]
[1739157075020,0.5674,2599.7,2598.8,3.21357056]
[1739157075222,0.5674,2599.7,2598.9,1.1574]
[1739157075612,3.2078,2599.5,2598.9,1.1574]
[1739157076014,4.12857494,2599.4,2598.9,1.1574]
[1739157076421,0.5771,2599.3,2598.9,1.1574]
[1739157076620,3.2078,2599.1,2598.8,0.00577056]
[1739157076921,4.4132409,2599.0,2598.8,0.00577056]
[1739157077314,0.5771,2599.3,2598.8,0.00577056]
[1739157077513,0.18988437,2599.2,2598.8,0.00577056]
[1739157078516,3.2078,2599.4,2598.8,3.21357056]
[1739157078714,3.2078,2599.4,2598.9,1.1626]
[1739157080930,3.2078,2599.8,2599.2,3.2078]
[1739157081227,7.5422049,2599.8,2599.2,3.2078]
[1739157081723,3.2078,2599.8,2599.2,3.2078]
[1739157081924,3.2078,2599.8,2599.3,0.6145]
[1739157082326,3.21150227,2600.2,2599.5,3.2078]
[1739157082631,3.21150227,2600.2,2599.6,0.6122]
[1739157083120,4.44147843,2600.1,2599.6,0.6122]
[1739157084616,5.03117843,2600.1,2599.6,0.6122]
[1739157084819,5.03117843,2600.1,2599.4,0.587]
[1739157085022,5.03117843,2600.1,2597.8,20.4345822]
[1739157085023,3.2078,2599.9,2599.0,0.6122]
[1739157085223,3.2078,2599.9,2599.1,0.57710944]
[1739157085416,4.09060883,2599.8,2599.1,3.78490944]
[1739157085625,4.09060883,2599.8,2599.1,3.2078]
[1739157087930,4.09060883,2599.8,2599.2,0.76925]
[1739157088128,0.5897,2600.1,2599.4,3.2078]
[1739157088430,0.00370227,2600.2,2599.5,0.5576]
[1739157088632,0.00370227,2600.2,2599.6,0.5592]
[1739157088930,0.00370227,2600.2,2599.6,1.162]
[1739157090035,4.45369902,2600.1,2599.5,0.5576]
[1739157090528,0.5795,2600.0,2599.5,0.5576]
[1739157090829,0.5689,2599.9,2599.5,0.5576]
[1739157091131,5.02259902,2599.9,2599.2,0.5592]
[1739157091734,3.2078,2599.7,2599.2,0.5592]
[1739157092129,4.08352663,2599.6,2599.2,0.5592]
[1739157093139,0.5689,2599.9,2599.2,3.767]
[1739157093333,0.5795,2600.0,2599.5,3.2078]
[1739157093531,3.21150227,2600.2,2599.6,0.5967]
[1739157093831,4.37985695,2600.1,2599.6,0.5967]
[1739157094342,4.37985695,2600.1,2599.6,3.8045]
[1739157094634,4.37985695,2600.1,2599.6,44.6045]
[1739157095430,4.37985695,2600.1,2599.6,3.8045]
[1739157095834,0.00370227,2600.2,2600.0,3.2078]
[1739157096029,0.00370227,2600.2,2599.8,41.9558]
[1739157096630,0.00370227,2600.2,2599.8,1.1558]
[1739157097428,4.08596106,2600.1,2599.8,0.576]
[1739157098441,0.00370227,2600.2,2599.8,0.576]
[1739157099235,0.00370227,2600.2,2599.9,3.2078]
[1739157099436,0.00370227,2600.2,2600.0,2.03575397]
[1739157099635,3.2078,2601.6,2600.4,0.7689]
[1739157099835,3.2078,2601.6,2601.0,5.24355397]
[1739157100041,3.2078,2601.6,2601.1,0.5833]
[1739157100042,4.14108417,2601.4,2601.1,0.5833]
[1739157100237,4.14108417,2601.4,2601.2,40.8]
[1739157100640,0.1904445,2601.8,2601.2,40.8]
[1739157101043,4.25221182,2601.7,2601.2,40.8]
[1739157103343,4.25221182,2601.7,2601.3,3.2078]
[1739157103538,3.2078,2601.9,2601.3,3.2078]
[1739157105745,1.1489,2602.1,2601.3,3.2078]
[1739157106140,4.37556092,2602.0,2601.3,3.2078]
[1739157107744,3.2078,2601.9,2601.1,1.1491]
[1739157108137,4.42877821,2601.8,2601.1,1.1491]
[1739157108341,3.2078,2601.6,2601.0,3.2078]
[1739157108539,0.6038,2601.5,2601.0,3.2078]
[1739157108737,0.6038,2601.5,2600.7,0.00577056]
[1739157108738,3.2078,2601.3,2600.7,0.00577056]
[1739157109139,4.3987989,2601.2,2600.7,0.00577056]
[1739157109346,3.2078,2601.0,2600.7,0.00577056]
[1739157109645,4.3987989,2600.9,2600.7,0.00577056]
[1739157110041,3.2078,2601.0,2600.7,0.00577056]
[1739157110852,4.23745611,2600.9,2600.7,0.00577056]
[1739157111952,1.1463,2600.8,2600.7,0.00577056]
[1739157112446,5.39723075,2600.8,2600.7,0.00577056]
[1739157113748,11.39723075,2600.8,2599.6,3.2078]
[1739157114041,3.2078,2600.3,2599.7,40.8]
[1739157114249,3.2078,2600.6,2599.7,40.8]
[1739157114635,4.15993545,2600.5,2599.7,40.8]
[1739157115042,0.00577056,2600.4,2599.8,0.00577056]
[1739157115450,4.21572477,2600.3,2599.8,0.00577056]
[1739157116044,4.21572477,2600.3,2599.8,2.04152453]
[1739157116246,0.00577056,2600.4,2599.8,2.04152453]
[1739157118344,0.00577056,2600.4,2600.1,2.03575397]
[1739157118561,0.00577056,2600.4,2600.2,1.1636]
[1739157118944,4.32446309,2600.3,2599.8,0.00577056]
[1739157120849,3.2078,2600.1,2599.8,0.00577056]
[1739157121245,4.41587062,2600.0,2599.8,0.00577056]
[1739157122146,1.1211,2600.2,2599.8,0.00577056]
[1739157122453,4.19092502,2600.1,2599.8,0.00577056]
[1739157123752,4.38588783,2600.1,2599.8,0.00577056]
[1739157124253,4.99138783,2600.1,2599.8,0.00577056]
[1739157126147,4.19092502,2600.1,2599.8,0.00577056]
[1739157126451,0.00577056,2600.4,2599.8,0.00577056]
[1739157126649,0.00577056,2600.4,2599.8,2.64342453]
[1739157126946,4.0778336,2600.3,2599.9,41.3961]
[1739157127344,0.00577056,2600.4,2599.9,41.3961]
[1739157129649,0.00577056,2600.4,2600.3,3.2078]
[1739157129955,3.2078,2601.3,2600.3,3.2078]
[1739157130156,3.2078,2601.3,2600.5,2.03575397]
[1739157130349,4.36457295,2601.2,2600.6,1.2077]
[1739157132056,4.36457295,2601.2,2600.6,0.6112]
[1739157132358,3.2078,2600.7,2600.0,3.7805]
[1739157132656,3.2078,2601.1,2600.1,0.5996]
[1739157133150,7.24734113,2601.1,2600.2,2.62295397]
[1739157134348,3.2078,2600.7,2600.2,0.5872]
[1739157134658,3.2078,2600.7,2600.1,0.5996]
[1739157134858,4.72598329,2600.6,2600.1,0.5996]
[1739157135352,3.2078,2600.4,2600.1,0.5996]
[1739157135649,3.2078,2600.4,2599.9,0.5807]
[1739157135856,4.36917375,2600.3,2599.9,0.5807]
[1739157137155,4.36917375,2600.3,2599.9,2.61645397]
[1739157137458,0.5558,2601.2,2600.2,5.24355397]
[1739157137659,3.2078,2601.3,2600.2,5.24355397]
[1739157137860,4.25365093,2601.2,2600.2,5.24355397]
[1739157138362,4.25365093,2601.2,2600.3,40.8]
[1739157138551,4.25365093,2601.2,2600.5,5.24355397]
[1739157138855,3.2078,2601.3,2600.9,2.03575397]
[1739157139063,3.2078,2602.0,2601.2,5.24355397]
[1739157139255,3.2078,2602.0,2601.3,0.5599]
[1739157139559,4.23642841,2602.0,2601.3,0.56567056]
[1739157139762,7.44422841,2602.0,2601.3,0.56567056]
[1739157140064,3.99761463,2602.1,2601.3,0.56567056]
[1739157140258,3.99761463,2601.9,2601.3,0.56567056]
[1739157140461,1.1468,2602.2,2601.3,0.56567056]
[1739157140964,3.99761463,2602.1,2601.3,0.56567056]
[1739157142562,3.99761463,2602.1,2601.5,5.24355397]
[1739157142760,4.30625157,2602.2,2601.8,3.2078]
[1739157143072,3.2078,2602.3,2601.8,3.2078]
[1739157143756,4.25089656,2602.2,2601.6,0.6019]
[1739157145161,3.2078,2602.9,2602.1,3.2078]
[1739157145461,4.08339655,2602.8,2602.3,2.03575397]
[1739157145665,4.08339655,2602.8,2602.4,3.2078]
[1739157146059,3.2078,2602.9,2602.4,3.2078]
[1739157146261,3.2078,2603.6,2602.6,2.03575397]
[1739157146464,3.2078,2603.6,2603.0,2.03575397]
[1739157146659,4.27986388,2603.5,2602.7,2.03575397]
[1739157146860,4.27986388,2603.5,2603.0,0.00577056]
[1739157147263,4.27986388,2603.5,2603.0,2.04152453]
[1739157147565,3.2078,2603.6,2603.1,0.5799]
[1739157147767,3.2078,2603.6,2603.1,1.1466]
[1739157148267,7.65271236,2603.5,2603.0,0.00577056]
[1739157148567,3.2078,2603.5,2603.0,0.00577056]
[1739157148959,4.44491236,2603.4,2603.0,0.00577056]
[1739157149160,3.2078,2603.1,2603.0,0.00577056]
[1739157149562,9.13335256,2603.1,2602.1,2.64745397]
[1739157149874,0.5943,2603.0,2602.1,2.64745397]
[1739157150273,4.06327566,2602.9,2602.1,2.64745397]
[1739157150465,4.06327566,2602.9,2602.1,5.85525397]
[1739157150866,4.06327566,2602.9,2602.2,0.00577056]
[1739157151969,4.06327566,2602.9,2602.2,0.59527056]
[1739157152767,4.06327566,2602.9,2602.4,2.03575397]
[1739157152968,4.06327566,2602.9,2602.2,0.59527056]
[1739157155168,3.2078,2602.5,2602.2,0.59527056]
[1739157155372,3.2078,2602.5,2602.2,0.00577056]
[1739157155571,4.06327566,2602.9,2602.2,0.00577056]
[1739157155572,4.2759391,2602.4,2602.2,0.00577056]
[1739157156077,3.2078,2602.4,2602.2,0.00577056]
[1739157156467,4.17056302,2602.3,2602.2,0.00577056]
[1739157156869,7.37836302,2602.8,2602.2,0.00577056]
[1739157157177,3.2078,2602.5,2602.2,0.00577056]
[1739157157380,0.5804,2602.4,2602.2,0.00577056]
[1739157157570,5.55405917,2602.4,2602.2,0.00577056]
[1739157157876,11.55405917,2602.4,2601.5,3.2078]
[1739157158085,3.2078,2602.0,2601.5,3.2078]
[1739157158275,3.2078,2602.0,2601.5,5.24355397]
[1739157158482,1.1467,2602.4,2601.5,5.24355397]
[1739157158866,3.2078,2602.2,2601.4,1.1455]
[1739157159080,3.2078,2602.2,2601.7,0.00577056]
[1739157159275,4.46164961,2602.1,2601.7,0.00577056]
[1739157160378,3.2078,2601.9,2601.7,0.00577056]
[1739157160777,4.30001236,2601.8,2601.7,0.00577056]
[1739157160973,4.87271236,2601.8,2601.7,0.00577056]
[1739157162879,10.87271236,2601.8,2600.6,5.43933564]
[1739157163079,3.2078,2601.5,2600.6,5.43933564]
[1739157163377,3.2078,2601.2,2600.6,3.2078]
[1739157163882,4.19189914,2601.1,2600.6,3.2078]
[1739157164176,3.39777392,2601.5,2600.6,3.21357056]
[1739157164381,4.24136189,2601.4,2600.6,3.21357056]
[1739157164682,3.2078,2601.5,2600.6,5.24932453]
[1739157164973,4.24136189,2601.4,2600.6,5.24932453]
[1739157166081,3.2078,2601.2,2600.6,3.21357056]
[1739157166473,4.15620175,2601.1,2600.6,3.21357056]
[1739157168586,3.2078,2600.8,2600.6,0.00577056]
[1739157168988,0.5818,2601.0,2600.6,0.00577056]
[1739157169280,3.99873336,2600.9,2600.6,0.00577056]
[1739157169586,3.2078,2600.8,2600.6,0.00577056]
[1739157169981,3.99873336,2600.7,2600.6,0.00577056]
[1739157176577,3.99873336,2600.7,2599.8,1.7203]
[1739157176778,3.2078,2600.2,2599.8,1.1137]
[1739157177175,4.0022988,2600.1,2599.8,1.1137]
[1739157178088,4.0022988,2600.1,2599.8,0.5587]
[1739157180190,4.0022988,2600.1,2599.7,0.00577056]
[1739157180986,3.2078,2599.9,2599.7,0.00577056]
[1739157181285,3.2078,2599.9,2599.1,3.7744]
[1739157181490,3.2078,2599.6,2599.1,3.2078]
[1739157181784,5.1138,2599.6,2599.1,3.2078]
[1739157181990,3.2078,2599.3,2598.9,0.5994]
[1739157182383,4.28346225,2599.2,2598.9,0.5994]
[1739157185991,3.2078,2599.3,2598.9,0.5994]
[1739157186189,3.2078,2599.0,2598.8,0.00577056]
[1739157186594,4.18571002,2598.9,2598.8,0.00577056]
[1739157189395,4.75831002,2598.9,2598.8,0.00577056]
[1739157189697,6.66431002,2598.9,2598.8,0.00577056]
[1739157190395,6.66431002,2598.9,2598.3,1.7954]
[1739157190592,7.22631002,2598.9,2598.3,1.1929]
[1739157191399,3.2078,2598.5,2598.3,0.6028]
[1739157191590,3.2078,2598.5,2598.3,0.00384706]
[1739157191791,4.01351443,2598.4,2598.3,0.00384706]
[1739157193299,4.62241443,2598.4,2598.3,0.00384706]
[1739157194988,4.62241443,2598.4,2597.7,0.6128]
[1739157195196,3.2078,2598.2,2597.7,0.6128]
[1739157195797,4.14169961,2598.1,2597.7,0.6128]
[1739157197101,4.14169961,2598.1,2597.5,0.6101]
[1739157200288,1.907,2598.3,2597.5,0.6101]
[1739157200496,4.45598703,2598.2,2597.5,0.6101]
[1739157200897,4.45598703,2598.3,2597.5,0.6101]
[1739157201092,2.5159,2598.4,2597.7,3.2078]
[1739157201398,3.2078,2598.5,2597.7,3.2078]
[1739157201399,4.3503813,2598.3,2597.7,3.2078]
[1739157201905,4.3503813,2598.4,2597.6,2.03575397]
[1739157202105,3.2078,2598.5,2597.6,2.03575397]
[1739157202399,4.30589909,2598.4,2597.6,2.03575397]
[1739157202995,4.30589909,2598.4,2597.5,0.6101]
[1739157203196,0.5865,2598.3,2597.5,0.6101]
[1739157203694,4.14032535,2598.2,2597.6,1.58923158]
[1739157203994,4.14032535,2598.2,2597.9,1.58923158]
[1739157204194,4.14032535,2598.2,2598.0,1.1998]
[1739157204394,4.14032535,2598.2,2598.1,0.6048]
[1739157208506,3.2078,2598.5,2598.1,0.6048]
[1739157208805,3.2078,2598.5,2598.3,1.58923158]
[1739157209002,3.2078,2598.5,2598.3,42.38923158]
[1739157209404,0.00577056,2598.9,2598.3,42.38923158]
[1739157209604,0.00577056,2598.9,2598.3,1.58923158]
[1739157209802,4.37123589,2598.8,2598.1,0.6048]
[1739157211414,4.37123589,2598.8,2598.3,4.79703158]
[1739157212007,3.2078,2598.7,2598.1,0.6048]
[1739157212213,4.3617,2598.7,2598.1,0.6048]
[1739157212513,4.79703158,2598.4,2597.4,1.58923158]
[1739157212707,6.70303158,2598.4,2597.4,1.58923158]
[1739157212901,4.41781939,2598.3,2597.4,1.58923158]
[1739157213108,3.2078,2598.1,2597.4,1.58923158]
[1739157213505,4.45581035,2598.0,2597.4,1.58923158]
[1739157214617,4.45581035,2598.0,2597.6,3.2078]
[1739157215005,4.45581035,2598.0,2597.7,0.5745]
[1739157215609,0.5558,2598.7,2597.9,3.2078]
[1739157215819,0.5558,2598.7,2598.0,2.78003676]
[1739157216115,4.38930868,2598.6,2598.0,2.78003676]
[1739157216315,4.38930868,2598.6,2598.0,2.20433158]
[1739157216511,4.38930868,2598.6,2598.1,0.57578636]
[1739157217010,3.2078,2598.3,2597.8,0.6091]
[1739157217204,0.6122,2598.2,2597.8,0.6091]
[1739157217408,4.8636025,2598.2,2597.8,0.6091]
[1739157218211,4.8636025,2598.2,2597.5,3.2078]
[1739157218419,0.5719,2598.1,2597.5,3.2078]
[1739157218606,3.2078,2597.7,2597.3,1.1838]
[1739157218812,4.30842178,2598.0,2597.3,1.1838]
[1739157219011,4.30842178,2597.6,2597.3,1.1838]
[1739157219218,5.55943123,2598.1,2597.3,1.1838]
[1739157219413,4.16847019,2598.0,2597.3,1.1838]
[1739157219612,5.55943123,2598.1,2597.3,1.1838]
[1739157220013,5.55943123,2598.1,2596.8,41.56997]
[1739157220014,3.2078,2597.6,2596.8,1.58923158]
[1739157220219,1.1942,2597.5,2596.8,1.58923158]
[1739157220422,5.34310932,2597.5,2596.8,1.58923158]
[1739157221212,5.34310932,2597.5,2596.7,3.2078]
[1739157221213,3.2078,2597.3,2596.5,3.31333158]
[1739157221714,4.42273744,2597.2,2596.8,4.79703158]
[1739157221913,4.42273744,2597.2,2596.8,1.58923158]
[1739157222218,4.42273744,2597.4,2596.8,1.58923158]
[1739157222420,1.19997056,2597.5,2596.8,1.58923158]
[1739157222617,4.33500372,2597.4,2596.8,4.79703158]
[1739157222819,4.33500372,2597.4,2597.1,4.79703158]
[1739157223017,0.00577056,2597.5,2597.2,1.2101]
[1739157223317,0.00577056,2597.5,2597.4,4.79703158]
[1739157224018,3.2078,2598.3,2597.4,10.79703158]
[1739157224319,3.2078,2598.3,2597.8,4.79703158]
[1739157224516,3.2078,2598.3,2597.9,1.2101]
[1739157225322,0.00577056,2598.4,2597.9,1.2101]
[1739157227820,4.0460263,2598.3,2597.9,1.2101]
[1739157228417,7.2538263,2598.3,2597.8,0.00577056]
[1739157228614,4.0460263,2598.3,2597.8,0.00577056]
[1739157229523,7.2538263,2598.3,2597.8,0.00577056]
[1739157229822,0.6042,2598.2,2597.8,0.00577056]
[1739157230216,7.2538263,2598.3,2597.8,0.00577056]
[1739157230217,4.23201932,2598.1,2597.8,0.00577056]
[1739157230416,3.2078,2598.3,2597.8,0.00577056]
[1739157231221,4.16157485,2598.2,2597.8,0.00577056]
[1739157231422,0.5965,2598.1,2597.8,0.00577056]
[1739157231624,3.2078,2598.0,2597.8,0.00577056]
[1739157231831,7.54238732,2598.0,2597.8,0.00577056]
[1739157234026,4.33458732,2598.0,2597.8,0.00577056]
[1739157234923,3.2078,2598.3,2597.8,0.00577056]
[1739157236121,4.25946452,2598.2,2597.8,0.00577056]
[1739157236324,3.2078,2597.9,2597.8,0.00577056]
[1739157236726,7.51458281,2597.9,2597.8,0.00577056]
[1739157237621,7.51458281,2597.9,2597.2,3.2078]
[1739157237924,0.5899,2597.8,2597.2,3.2078]
[1739157238323,4.0350234,2597.7,2597.2,3.2078]
[1739157239435,0.6068,2597.6,2597.2,3.2078]
[1739157239733,4.12900312,2597.5,2597.2,3.2078]
[1739157240329,0.19188635,2597.9,2597.3,3.2078]
[1739157240527,1.904,2598.0,2597.4,0.5949]
[1739157240835,4.31115575,2597.9,2597.4,1.1725]
[1739157241036,4.31115575,2597.9,2597.5,40.8]
[1739157241432,4.31115575,2597.9,2597.4,1.1725]
[1739157242334,7.51895575,2597.9,2597.4,1.1725]
[1739157243434,4.31115575,2597.9,2597.4,1.1725]
[1739157243622,0.6068,2598.2,2597.6,3.2078]
[1739157243933,3.2078,2598.5,2597.9,3.2078]
[1739157244125,3.2078,2598.5,2598.0,1.1353]
[1739157244321,4.1044325,2598.3,2598.0,1.1353]
[1739157247834,4.1044325,2598.3,2597.6,3.2078]
[1739157248030,4.1044325,2598.3,2597.6,1.1632]
[1739157250840,4.1044325,2598.3,2597.6,4.371]
[1739157252438,3.2078,2598.2,2597.6,1.1632]
[1739157252829,4.14502509,2598.1,2597.6,1.1632]
[1739157253037,4.79707246,2597.8,2596.6,1.58927246]
[1739157253243,3.2078,2597.5,2596.6,1.58927246]
[1739157253447,0.5592,2597.4,2596.7,0.57679475]
[1739157253739,4.21096093,2597.4,2596.9,1.58927246]
[1739157253938,5.3548,2597.8,2597.0,0.6147]
[1739157254334,4.21096093,2597.7,2597.0,0.6147]
[1739157257044,4.21096093,2597.7,2596.8,3.2078]
[1739157257242,3.2078,2597.5,2596.8,3.2078]
[1739157257644,4.30677297,2597.4,2596.9,0.595]
[1739157258544,4.23380414,2597.6,2597.0,0.5977]
[1739157258743,3.2078,2597.8,2597.1,3.2078]
[1739157259042,4.23380414,2597.6,2597.1,3.2078]
[1739157259438,3.2078,2597.8,2597.0,0.5977]
[1739157259744,4.02545103,2597.5,2597.0,0.5977]
[1739157259943,4.02545103,2597.6,2597.0,0.5977]
[1739157260147,3.2078,2597.8,2597.0,0.5977]
[1739157260337,4.02545103,2597.5,2597.0,0.5977]
[1739157260644,4.42939648,2597.6,2597.0,0.5977]
[1739157260939,4.79707246,2597.8,2597.0,0.5977]
[1739157261139,4.42939648,2597.5,2597.0,0.5977]
[1739157261342,4.42939648,2597.6,2597.0,0.5977]
[1739157261642,4.79707246,2597.8,2597.0,0.5977]
[1739157261840,4.09973575,2597.5,2597.0,0.5977]
[1739157262045,4.09973575,2597.6,2597.0,0.5977]
[1739157262237,3.2078,2597.8,2597.0,0.5977]
[1739157262638,4.3153092,2597.5,2597.0,0.5977]
[1739157262935,3.2078,2597.8,2597.0,0.5977]
[1739157263238,4.3153092,2597.5,2597.1,3.2078]
[1739157263738,2.4622,2597.9,2597.1,3.2078]
[1739157263739,0.5592,2597.9,2597.1,3.2078]
[1739157264146,4.35680667,2597.5,2597.1,3.2078]
[1739157264343,4.20390682,2597.8,2597.1,3.2078]
[1739157264542,0.5592,2597.9,2597.1,3.2078]
[1739157264740,4.35490503,2597.5,2597.1,3.2078]
[1739157264941,4.35490503,2597.8,2597.1,3.2078]
[1739157265145,0.5592,2597.9,2597.1,3.2078]
[1739157265344,4.35490503,2597.8,2597.1,3.2078]
[1739157266145,4.35490503,2597.8,2597.2,1.58927246]
[1739157266945,4.35490503,2597.8,2597.4,3.2078]
[1739157267240,1.903,2598.1,2597.5,0.593]
[1739157267441,1.903,2598.1,2597.6,0.5976]
[1739157267639,4.32073507,2598.0,2597.6,0.5976]
[1739157268248,4.91313507,2598.0,2597.6,0.5976]
[1739157269348,4.91313507,2598.0,2597.5,0.5599]
[1739157269540,0.5826,2597.9,2597.5,0.5599]
[1739157269948,4.43051711,2597.8,2597.5,0.5599]
[1739157271747,4.43051711,2597.8,2597.3,0.5742]
[1739157273650,3.2078,2597.7,2597.0,0.6051]
[1739157274040,4.24600687,2597.6,2597.0,3.8129]
[1739157274240,4.24600687,2597.6,2597.2,1.58927246]
[1739157274847,4.24600687,2597.6,2597.3,0.5631]
[1739157275041,4.24600687,2597.6,2597.4,3.2078]
[1739157275237,2.7394,2598.0,2597.5,0.6082]
[1739157275649,4.24615513,2597.9,2597.5,0.6082]
[1739157275947,4.24615513,2597.9,2597.5,2.19747246]
[1739157276252,2.147,2598.0,2597.5,2.19747246]
[1739157276447,0.5833,2598.2,2597.6,0.5649]
[1739157276653,0.5833,2598.2,2597.8,1.58927246]
[1739157276855,0.6148,2598.3,2597.8,1.58927246]
[1739157277046,0.6148,2598.3,2597.9,0.5684]
[1739157277245,4.15183891,2598.2,2597.9,0.5684]
[1739157278156,3.2078,2598.1,2597.5,0.6082]
[1739157278344,0.5946,2598.0,2597.5,0.6082]
[1739157278550,4.77050088,2598.0,2597.5,0.6082]
[1739157280246,3.2078,2597.8,2597.3,0.5684]
[1739157280651,4.86224252,2597.7,2597.3,0.5684]
[1739157284259,4.86224252,2597.7,2597.1,3.8079]
[1739157284761,4.86224252,2597.7,2597.2,0.5668]
[1739157286254,4.86224252,2597.7,2597.2,2.15607246]
[1739157288154,4.29214252,2597.7,2597.2,2.15607246]
[1739157288364,0.5946,2598.0,2597.5,1.58927246]
[1739157288763,0.5946,2598.0,2597.4,3.2078]
[1739157289060,4.33643881,2597.9,2597.4,3.2078]
[1739157289858,4.33643881,2597.9,2597.3,0.5756]
[1739157290163,0.5737,2597.8,2597.2,2.15607246]
[1739157290662,4.30560527,2597.7,2597.2,2.15607246]
[1739157294963,4.30560527,2597.7,2597.3,0.57765571]
[1739157295364,4.30560527,2597.7,2597.2,2.15607246]
[1739157296369,4.30560527,2597.7,2597.2,0.5668]
[1739157299466,4.30560527,2597.7,2597.2,2.15607246]
[1739157299670,0.5946,2598.0,2597.4,3.2078]
[1739157299867,1.1883,2598.0,2597.4,3.2078]
[1739157300264,3.2078,2598.3,2597.8,1.58927246]
[1739157300470,3.2078,2598.3,2597.9,1.1725]
[1739157300769,4.01421808,2598.2,2597.5,0.5562]
[1739157300970,4.60791808,2598.2,2597.6,41.9725]
[1739157301272,4.60791808,2598.2,2597.6,1.1725]
[1739157301469,3.2078,2598.0,2597.2,1.58927246]
[1739157301767,0.5882,2597.9,2597.3,1.1475]
[1739157301966,4.6555435,2597.9,2597.3,1.1475]
[1739157302174,3.2078,2597.7,2597.3,0.5889]
[1739157302566,4.6653435,2597.6,2597.3,0.5889]
[1739157303873,4.6653435,2597.6,2597.1,0.5562]
[1739157304276,4.6653435,2597.6,2597.2,0.5777725]
[1739157304771,4.6653435,2597.6,2597.1,0.5562]
[1739157305477,4.6653435,2597.6,2597.1,3.764]
[1739157305771,4.6653435,2597.6,2597.2,0.57763867]
[1739157305978,4.6653435,2597.6,2597.3,0.57763867]
[1739157306476,4.6653435,2597.6,2597.1,3.764]
[1739157306975,4.6653435,2597.6,2597.2,0.57783836]
[1739157307477,4.0673435,2597.6,2597.2,1.58927246]
[1739157307676,4.0673435,2597.6,2597.3,0.57789602]
[1739157308075,4.0673435,2597.6,2597.4,0.5674]
[1739157308273,4.0673435,2597.6,2597.4,1.14529602]
[1739157308572,4.0673435,2597.6,2597.4,0.57789602]
[1739157308880,4.0673435,2597.6,2597.1,0.5562]
[1739157308881,0.5888,2597.5,2597.1,0.5562]
[1739157309271,0.5888,2597.5,2597.2,0.5776948]
[1739157309478,7.62700092,2597.4,2597.2,0.5776948]
[1739157309681,0.5646,2597.3,2596.8,3.2078]
[1739157310081,4.24264211,2597.2,2596.8,3.2078]
[1739157311387,3.2078,2597.1,2596.5,1.7656]
[1739157311884,4.78791011,2597.0,2596.5,1.7656]
[1739157312279,0.00577056,2597.1,2596.7,3.2078]
[1739157312677,0.00577056,2597.1,2597.0,3.2078]
[1739157313286,0.00577056,2597.1,2597.0,3.8152]
[1739157313583,0.00577056,2597.1,2597.0,0.6074]
[1739157314184,0.00577056,2597.1,2596.7,3.2078]
[1739157314582,0.00577056,2597.1,2596.6,2.16557246]
[1739157315485,4.07416553,2597.0,2596.7,3.2078]
[1739157315676,4.07416553,2597.0,2596.9,1.58927246]
[1739157315882,0.00577056,2597.1,2596.9,1.58927246]
[1739157317987,0.00577056,2597.1,2597.0,3.2078]
[1739157318178,0.00577056,2597.1,2597.0,3.78485806]
[1739157318484,0.00577056,2597.1,2597.0,44.58485806]
[1739157318891,0.5634,2597.9,2597.2,1.58927246]
[1739157319086,0.5634,2597.9,2597.3,4.3389]
[1739157319279,0.5634,2597.9,2597.3,4.9495]
[1739157319280,4.45375801,2597.8,2597.3,4.9495]
[1739157319481,7.66155801,2597.8,2597.0,3.2078]
[1739157319684,7.66155801,2597.8,2596.9,1.58927246]
[1739157319988,0.00577056,2597.6,2597.1,0.00577056]
[1739157320382,4.08773887,2597.5,2597.1,0.00577056]
[1739157320582,0.00577056,2597.6,2597.2,1.58927246]
[1739157321890,0.00577056,2597.6,2597.3,3.2078]
[1739157323698,0.00577056,2597.6,2597.5,1.58927246]
[1739157323995,0.00577056,2597.6,2597.5,2.16629877]
[1739157324586,0.00577056,2597.6,2597.5,0.57702631]
[1739157325188,4.45005334,2597.6,2597.1,0.00577056]
[1739157325493,0.5949,2597.5,2597.1,0.00577056]
[1739157325994,4.17239544,2597.4,2597.1,0.00577056]
[1739157326189,0.00577056,2597.6,2597.2,1.58927246]
[1739157327801,4.39380147,2597.5,2597.2,1.58927246]
[1739157328097,0.00577056,2597.6,2597.2,1.58927246]
[1739157328687,0.00577056,2597.6,2597.5,1.58927246]
[1739157329393,0.5728,2598.5,2597.5,8.16582124]
[1739157329593,0.5728,2598.5,2597.9,4.79707246]
[1739157329901,4.22328596,2598.4,2597.9,4.79707246]
[1739157330492,4.22328596,2598.4,2597.9,1.58927246]
[1739157330493,4.22905652,2598.4,2597.9,1.58927246]
[1739157330895,4.22905652,2598.4,2597.9,4.79707246]
[1739157331198,0.00577056,2598.4,2598.2,4.79707246]
[1739157331394,0.00577056,2598.4,2598.3,1.1962]
[1739157332495,0.00577056,2598.4,2598.3,1.802]
[1739157333200,0.5971,2599.1,2598.3,8.57154]
[1739157333401,3.2078,2599.4,2599.0,1.58927246]
[1739157333599,3.2078,2600.0,2599.3,1.58927246]
[1739157333899,4.0197392,2599.8,2599.3,1.58927246]
[1739157334097,4.0197392,2599.8,2599.4,0.5689]